Workbook

Sheet Read_me
A1: Original (German) from: https://www.controllingportal.de/Marktplatz/Excel-Tools/Gemeinkostenumlage.html
A2: Downloaded on: 20/01/2018 11:21:00
A4: 1. Original was wrong: 2_Umlage!C11 should read: ='1_Umlage'!J28
A5: 2. Graphic gemeinkostenumlage-1.gif on https://www.controllingportal.de/Marktplatz/Excel-Tools/Gemeinkostenumlage.html also showed wrong value 625.
A6: 3. This calculation corrects this error and is calculating correctly down to the cent so that the rounded sum is identical to the sum of rounded values.
A7: 4. Now this calculation is fit for purpose with existing accounting systems.
A9: Bernd Plumhoff
A10: 2020-07-25T16:32:00

Sheet Keys
A1: Phase 1 - Allocation of overhead costs to all cost centers
A3: Key | B3: per Head | C3: sqm | D3: uniform | E3: Weighted
A4: Total | B4: =SUM(B5:B18) -> 102 | C4: =SUM(C5:C18) -> 2685 | D4: =SUM(D5:D18) -> 14 | E4: =SUM(E5:E18) -> 16
A5: Management | B5: 1 | C5: 50 | D5: 1 | E5: 2
A6: Secretariat | B6: 1 | C6: 40 | D6: 1 | E6: 1
A7: Accounting | B7: 3 | C7: 100 | D7: 1 | E7: 1
A8: Controlling | B8: 1 | C8: 30 | D8: 1 | E8: 1
A9: HR | B9: 2 | C9: 50 | D9: 1 | E9: 1
A10: Marketing | B10: 3 | C10: 50 | D10: 1 | E10: 2
A11: Trainees | B11: 3 | D11: 1 | E11: 1
A12: Workers Council | B12: 1 | C12: 15 | D12: 1 | E12: 1
A13: Factory 1 | B13: 12 | C13: 250 | D13: 1 | E13: 1
A14: Factory 2 | B14: 10 | C14: 350 | D14: 1 | E14: 1
A15: Car Park | C15: 100 | D15: 1 | E15: 1
A16: Production1 | B16: 20 | C16: 500 | D16: 1 | E16: 1
A17: Production2 | B17: 20 | C17: 550 | D17: 1 | E17: 1
A18: Production3 | B18: 25 | C18: 600 | D18: 1 | E18: 1
A20: Phase 2 - Allocation of Overhead Cost Centers and Secondary Cost Centers to Primary Cost Centers
A22: Secondary Cost Center | B22: Key | C22: Production1 | D22: Production2 | E22: Production3 | F22: Total
A23: Management | B23: Weighted | C23: 0.3 | D23: 0.4 | E23: 0.3 | F23: =SUM(C23:E23) -> 1
A24: Secretariat | B24: Weighted | C24: 0.4 | D24: 0.5 | E24: 0.1 | F24: 1
A25: Accounting | B25: Weighted | C25: 0.3 | D25: 0.13 | E25: 0.57 | F25: 1
A26: Controlling | B26: uniform | C26: 1 | D26: 1 | E26: 1 | F26: 3
A27: HR | B27: per Head | C27: 20 | D27: 20 | E27: 25 | F27: 65
A28: Marketing | B28: Weighted | C28: 0.3 | D28: 0.42 | E28: 0.28 | F28: 1
A29: Trainees | B29: uniform | C29: 1 | D29: 1 | E29: 1 | F29: 3
A30: Workers Council | B30: per Head | C30: 20 | D30: 20 | E30: 25 | F30: 65
A31: Factory 1 | B31: Weighted | C31: 0.25 | D31: 0.2 | E31: 0.55 | F31: 1
A32: Factory 2 | B32: Weighted | C32: 0.2 | D32: 0.2 | E32: 0.6 | F32: 1
A33: Car Park | B33: Weighted | C33: 0.4 | D33: 0.3 | E33: 0.3 | F33: 1

Sheet 1_Allocation
A1: Allocation of overhead costs to all cost centers
D3: Overhead Cost Centers | L3: Secondary Cost Centers | O3: Primary Cost Centers | R3: Total
A4: Cost Category | B4: Key | C4: Overhead Costs | D4: Management | E4: Secretariat | F4: Accounting | G4: Controlling | H4: HR | I4: Marketing | J4: Trainees | K4: Workers Council | L4: Factory 1 | M4: Factory 2 | N4: Car Park | O4: Production1 | P4: Production2 | Q4: Production3
A5: Travel expenses | B5: Weighted | C5: 10000 | D5: =RoundToSum($C5/INDEX(Keys!B$4:E$4,,MATCH(B5,Keys!$B$3:$E$3,0))*TRANSPOSE(INDEX(Keys!B$5:E$18,,MATCH(B5,Keys!$B$3:$E$3,0)))) -> 1250 | E5: 625 | F5: 625 | G5: 625 | H5: 625 | I5: 1250 | J5: 625 | K5: 625 | L5: 625 | M5: 625 | N5: 625 | O5: 625 | P5: 625 | Q5: 625 | R5: =SUM(D5:Q5) -> 10000
A6: Supervisory board | B6: uniform | C6: 3000 | D6: =RoundToSum($C6/INDEX(Keys!B$4:E$4,,MATCH(B6,Keys!$B$3:$E$3,0))*TRANSPOSE(INDEX(Keys!B$5:E$18,,MATCH(B6,Keys!$B$3:$E$3,0)))) -> 214.28 | E6: 214.28 | F6: 214.28 | G6: 214.28 | H6: 214.28 | I6: 214.28 | J6: 214.29 | K6: 214.29 | L6: 214.29 | M6: 214.29 | N6: 214.29 | O6: 214.29 | P6: 214.29 | Q6: 214.29 | R6: 3000
A7: Hospitality | B7: Weighted | C7: 2000 | D7: =RoundToSum($C7/INDEX(Keys!B$4:E$4,,MATCH(B7,Keys!$B$3:$E$3,0))*TRANSPOSE(INDEX(Keys!B$5:E$18,,MATCH(B7,Keys!$B$3:$E$3,0)))) -> 250 | E7: 125 | F7: 125 | G7: 125 | H7: 125 | I7: 250 | J7: 125 | K7: 125 | L7: 125 | M7: 125 | N7: 125 | O7: 125 | P7: 125 | Q7: 125 | R7: 2000
A8: Presents | B8: Weighted | C8: 1000 | D8: =RoundToSum($C8/INDEX(Keys!B$4:E$4,,MATCH(B8,Keys!$B$3:$E$3,0))*TRANSPOSE(INDEX(Keys!B$5:E$18,,MATCH(B8,Keys!$B$3:$E$3,0)))) -> 125 | E8: 62.5 | F8: 62.5 | G8: 62.5 | H8: 62.5 | I8: 125 | J8: 62.5 | K8: 62.5 | L8: 62.5 | M8: 62.5 | N8: 62.5 | O8: 62.5 | P8: 62.5 | Q8: 62.5 | R8: 1000
A9: Fees, charges | B9: uniform | C9: 500 | D9: =RoundToSum($C9/INDEX(Keys!B$4:E$4,,MATCH(B9,Keys!$B$3:$E$3,0))*TRANSPOSE(INDEX(Keys!B$5:E$18,,MATCH(B9,Keys!$B$3:$E$3,0)))) -> 35.72 | E9: 35.72 | F9: 35.72 | G9: 35.72 | H9: 35.72 | I9: 35.72 | J9: 35.71 | K9: 35.71 | L9: 35.71 | M9: 35.71 | N9: 35.71 | O9: 35.71 | P9: 35.71 | Q9: 35.71 | R9: 500
A10: Car costs | B10: Weighted | C10: 4500 | D10: =RoundToSum($C10/INDEX(Keys!B$4:E$4,,MATCH(B10,Keys!$B$3:$E$3,0))*TRANSPOSE(INDEX(Keys!B$5:E$18,,MATCH(B10,Keys!$B$3:$E$3,0)))) -> 562.5 | E10: 281.25 | F10: 281.25 | G10: 281.25 | H10: 281.25 | I10: 562.5 | J10: 281.25 | K10: 281.25 | L10: 281.25 | M10: 281.25 | N10: 281.25 | O10: 281.25 | P10: 281.25 | Q10: 281.25 | R10: 4500
A11: Hardware, equipment | B11: Weighted | C11: 200 | D11: =RoundToSum($C11/INDEX(Keys!B$4:E$4,,MATCH(B11,Keys!$B$3:$E$3,0))*TRANSPOSE(INDEX(Keys!B$5:E$18,,MATCH(B11,Keys!$B$3:$E$3,0)))) -> 25 | E11: 12.5 | F11: 12.5 | G11: 12.5 | H11: 12.5 | I11: 25 | J11: 12.5 | K11: 12.5 | L11: 12.5 | M11: 12.5 | N11: 12.5 | O11: 12.5 | P11: 12.5 | Q11: 12.5 | R11: 200
A12: External audit | B12: uniform | C12: 10000 | D12: =RoundToSum($C12/INDEX(Keys!B$4:E$4,,MATCH(B12,Keys!$B$3:$E$3,0))*TRANSPOSE(INDEX(Keys!B$5:E$18,,MATCH(B12,Keys!$B$3:$E$3,0)))) -> 714.28 | E12: 714.28 | F12: 714.28 | G12: 714.28 | H12: 714.28 | I12: 714.28 | J12: 714.29 | K12: 714.29 | L12: 714.29 | M12: 714.29 | N12: 714.29 | O12: 714.29 | P12: 714.29 | Q12: 714.29 | R12: 10000
A13: Other operating expenses | B13: sqm | C13: 5500 | D13: =RoundToSum($C13/INDEX(Keys!B$4:E$4,,MATCH(B13,Keys!$B$3:$E$3,0))*TRANSPOSE(INDEX(Keys!B$5:E$18,,MATCH(B13,Keys!$B$3:$E$3,0)))) -> 102.42 | E13: 81.94 | F13: 204.84 | G13: 61.45 | H13: 102.42 | I13: 102.42 | J13: 0 | K13: 30.73 | L13: 512.1 | M13: 716.95 | N13: 204.84 | O13: 1024.21 | P13: 1126.63 | Q13: 1229.05 | R13: 5500
A14: Energy costs | B14: sqm | C14: 6000 | D14: =RoundToSum($C14/INDEX(Keys!B$4:E$4,,MATCH(B14,Keys!$B$3:$E$3,0))*TRANSPOSE(INDEX(Keys!B$5:E$18,,MATCH(B14,Keys!$B$3:$E$3,0)))) -> 111.73 | E14: 89.39 | F14: 223.47 | G14: 67.04 | H14: 111.73 | I14: 111.73 | J14: 0 | K14: 33.52 | L14: 558.66 | M14: 782.12 | N14: 223.46 | O14: 1117.32 | P14: 1229.05 | Q14: 1340.78 | R14: 6000
A15: Insurances | B15: per Head | C15: 5000 | D15: =RoundToSum($C15/INDEX(Keys!B$4:E$4,,MATCH(B15,Keys!$B$3:$E$3,0))*TRANSPOSE(INDEX(Keys!B$5:E$18,,MATCH(B15,Keys!$B$3:$E$3,0)))) -> 49.02 | E15: 49.02 | F15: 147.06 | G15: 49.02 | H15: 98.04 | I15: 147.06 | J15: 147.06 | K15: 49.02 | L15: 588.23 | M15: 490.2 | N15: 0 | O15: 980.39 | P15: 980.39 | Q15: 1225.49 | R15: 5000
A16: Legal costs | B16: Weighted | C16: 5000 | D16: =RoundToSum($C16/INDEX(Keys!B$4:E$4,,MATCH(B16,Keys!$B$3:$E$3,0))*TRANSPOSE(INDEX(Keys!B$5:E$18,,MATCH(B16,Keys!$B$3:$E$3,0)))) -> 625 | E16: 312.5 | F16: 312.5 | G16: 312.5 | H16: 312.5 | I16: 625 | J16: 312.5 | K16: 312.5 | L16: 312.5 | M16: 312.5 | N16: 312.5 | O16: 312.5 | P16: 312.5 | Q16: 312.5 | R16: 5000
A17: Accounting costs | B17: Weighted | C17: 1000 | D17: =RoundToSum($C17/INDEX(Keys!B$4:E$4,,MATCH(B17,Keys!$B$3:$E$3,0))*TRANSPOSE(INDEX(Keys!B$5:E$18,,MATCH(B17,Keys!$B$3:$E$3,0)))) -> 125 | E17: 62.5 | F17: 62.5 | G17: 62.5 | H17: 62.5 | I17: 125 | J17: 62.5 | K17: 62.5 | L17: 62.5 | M17: 62.5 | N17: 62.5 | O17: 62.5 | P17: 62.5 | Q17: 62.5 | R17: 1000
A18: Stationary | B18: Weighted | C18: 2000 | D18: =RoundToSum($C18/INDEX(Keys!B$4:E$4,,MATCH(B18,Keys!$B$3:$E$3,0))*TRANSPOSE(INDEX(Keys!B$5:E$18,,MATCH(B18,Keys!$B$3:$E$3,0)))) -> 250 | E18: 125 | F18: 125 | G18: 125 | H18: 125 | I18: 250 | J18: 125 | K18: 125 | L18: 125 | M18: 125 | N18: 125 | O18: 125 | P18: 125 | Q18: 125 | R18: 2000
A19: Telecommunication | B19: Weighted | C19: 2500 | D19: =RoundToSum($C19/INDEX(Keys!B$4:E$4,,MATCH(B19,Keys!$B$3:$E$3,0))*TRANSPOSE(INDEX(Keys!B$5:E$18,,MATCH(B19,Keys!$B$3:$E$3,0)))) -> 312.5 | E19: 156.25 | F19: 156.25 | G19: 156.25 | H19: 156.25 | I19: 312.5 | J19: 156.25 | K19: 156.25 | L19: 156.25 | M19: 156.25 | N19: 156.25 | O19: 156.25 | P19: 156.25 | Q19: 156.25 | R19: 2500
A20: Shipping and mailing costs | B20: Weighted | C20: 2000 | D20: =RoundToSum($C20/INDEX(Keys!B$4:E$4,,MATCH(B20,Keys!$B$3:$E$3,0))*TRANSPOSE(INDEX(Keys!B$5:E$18,,MATCH(B20,Keys!$B$3:$E$3,0)))) -> 250 | E20: 125 | F20: 125 | G20: 125 | H20: 125 | I20: 250 | J20: 125 | K20: 125 | L20: 125 | M20: 125 | N20: 125 | O20: 125 | P20: 125 | Q20: 125 | R20: 2000
A21: Books, magazines | B21: Weighted | C21: 1000 | D21: =RoundToSum($C21/INDEX(Keys!B$4:E$4,,MATCH(B21,Keys!$B$3:$E$3,0))*TRANSPOSE(INDEX(Keys!B$5:E$18,,MATCH(B21,Keys!$B$3:$E$3,0)))) -> 125 | E21: 62.5 | F21: 62.5 | G21: 62.5 | H21: 62.5 | I21: 125 | J21: 62.5 | K21: 62.5 | L21: 62.5 | M21: 62.5 | N21: 62.5 | O21: 62.5 | P21: 62.5 | Q21: 62.5 | R21: 1000
A22: Money transfer fees | B22: Weighted | C22: 500 | D22: =RoundToSum($C22/INDEX(Keys!B$4:E$4,,MATCH(B22,Keys!$B$3:$E$3,0))*TRANSPOSE(INDEX(Keys!B$5:E$18,,MATCH(B22,Keys!$B$3:$E$3,0)))) -> 62.5 | E22: 31.25 | F22: 31.25 | G22: 31.25 | H22: 31.25 | I22: 62.5 | J22: 31.25 | K22: 31.25 | L22: 31.25 | M22: 31.25 | N22: 31.25 | O22: 31.25 | P22: 31.25 | Q22: 31.25 | R22: 500
A23: Damages, compensation | B23: uniform | C23: 250 | D23: =RoundToSum($C23/INDEX(Keys!B$4:E$4,,MATCH(B23,Keys!$B$3:$E$3,0))*TRANSPOSE(INDEX(Keys!B$5:E$18,,MATCH(B23,Keys!$B$3:$E$3,0)))) -> 17.85 | E23: 17.85 | F23: 17.85 | G23: 17.85 | H23: 17.86 | I23: 17.86 | J23: 17.86 | K23: 17.86 | L23: 17.86 | M23: 17.86 | N23: 17.86 | O23: 17.86 | P23: 17.86 | Q23: 17.86 | R23: 250
A24: Working clothes | B24: Weighted | C24: 1500 | D24: =RoundToSum($C24/INDEX(Keys!B$4:E$4,,MATCH(B24,Keys!$B$3:$E$3,0))*TRANSPOSE(INDEX(Keys!B$5:E$18,,MATCH(B24,Keys!$B$3:$E$3,0)))) -> 187.5 | E24: 93.75 | F24: 93.75 | G24: 93.75 | H24: 93.75 | I24: 187.5 | J24: 93.75 | K24: 93.75 | L24: 93.75 | M24: 93.75 | N24: 93.75 | O24: 93.75 | P24: 93.75 | Q24: 93.75 | R24: 1500
A25: Handicapped fee | B25: uniform | C25: 2000 | D25: =RoundToSum($C25/INDEX(Keys!B$4:E$4,,MATCH(B25,Keys!$B$3:$E$3,0))*TRANSPOSE(INDEX(Keys!B$5:E$18,,MATCH(B25,Keys!$B$3:$E$3,0)))) -> 142.85 | E25: 142.85 | F25: 142.85 | G25: 142.85 | H25: 142.86 | I25: 142.86 | J25: 142.86 | K25: 142.86 | L25: 142.86 | M25: 142.86 | N25: 142.86 | O25: 142.86 | P25: 142.86 | Q25: 142.86 | R25: 2000
A26: Training and further education | B26: Weighted | C26: 2000 | D26: =RoundToSum($C26/INDEX(Keys!B$4:E$4,,MATCH(B26,Keys!$B$3:$E$3,0))*TRANSPOSE(INDEX(Keys!B$5:E$18,,MATCH(B26,Keys!$B$3:$E$3,0)))) -> 250 | E26: 125 | F26: 125 | G26: 125 | H26: 125 | I26: 250 | J26: 125 | K26: 125 | L26: 125 | M26: 125 | N26: 125 | O26: 125 | P26: 125 | Q26: 125 | R26: 2000
A27: Other operating expenses | B27: Weighted | C27: 1500 | D27: =RoundToSum($C27/INDEX(Keys!B$4:E$4,,MATCH(B27,Keys!$B$3:$E$3,0))*TRANSPOSE(INDEX(Keys!B$5:E$18,,MATCH(B27,Keys!$B$3:$E$3,0)))) -> 187.5 | E27: 93.75 | F27: 93.75 | G27: 93.75 | H27: 93.75 | I27: 187.5 | J27: 93.75 | K27: 93.75 | L27: 93.75 | M27: 93.75 | N27: 93.75 | O27: 93.75 | P27: 93.75 | Q27: 93.75 | R27: 1500
A28: Total | C28: =SUM(C5:C27) -> 68950 | D28: =SUM(D5:D27) -> 5975.65 | E28: =SUM(E5:E27) -> 3639.08 | F28: 3994.1 | G28: 3596.24 | H28: 3730.94 | I28: 6073.71 | J28: 3565.82 | K28: 3532.03 | L28: 5077.75 | M28: 5408.03 | N28: 3847.06 | O28: 6540.68 | P28: 6754.83 | Q28: 7214.08 | R28: =SUM(D28:Q28) -> 68950
Q30: Check | R30: =R28-C28 -> 0
T32: Worksheet Formulas
T33: Range | U33: Formula
T34: D5:D27 | U34: D5 | V34: =sbGetCell(INDIRECT(U34),41) -> =RoundToSum($C5/INDEX(Keys!B$4:E$4,,MATCH(B5,Keys!$B$3:$E$3,0))*TRANSPOSE(INDEX(Keys!B$5:E$18,,MATCH(B5,Keys!$B$3:$E$3,0))))
T35: C28:Q28 | U35: C28 | V35: =sbGetCell(INDIRECT(U35),41) -> =SUM(C5:C27)
T36: R5:R28 | U36: R5 | V36: =sbGetCell(INDIRECT(U36),41) -> =SUM(D5:Q5)
T37: R30 | U37: R30 | V37: =sbGetCell(INDIRECT(U37),41) -> =R28-C28

Sheet 2_Allocation
A1: Allocation of Overhead Cost Centers and Secondary Cost Centers to Primary Cost Centers
A3: Allocated Cost Centers | B3: Direct Costs | C3: Allocation Phase 1 | D3: Total | E3: Production1 | F3: Production2 | G3: Production3 | H3: Total
J4: Worksheet Formulas
A5: Management | B5: 111666 | C5: =TRANSPOSE('1_Allocation'!D28:N28) -> 5975.65 | D5: =SUM(B5:C5) -> 117641.65 | E5: =RoundToSum($D5/Keys!$F23*Keys!C23:E23) -> 35292.49 | F5: 47056.66 | G5: 35292.5 | H5: =SUM(E5:G5) -> 117641.65 | J5: Range | K5: Formula
A6: Secretariat | B6: 34627 | C6: 3639.08 | D6: =SUM(B6:C6) -> 38266.08 | E6: =RoundToSum($D6/Keys!$F24*Keys!C24:E24) -> 15306.43 | F6: 19133.04 | G6: 3826.61 | H6: =SUM(E6:G6) -> 38266.08 | J6: C5:C15 | K6: C5 | L6: =sbGetCell(INDIRECT(K6),41) -> =TRANSPOSE('1_Allocation'!D28:N28)
A7: Accounting | B7: 96834 | C7: 3994.1 | D7: 100828.1 | E7: =RoundToSum($D7/Keys!$F25*Keys!C25:E25) -> 30248.43 | F7: 13107.65 | G7: 57472.02 | H7: 100828.1 | J7: D5:D15 | K7: D5 | L7: =sbGetCell(INDIRECT(K7),41) -> =SUM(B5:C5)
A8: Controlling | B8: 83875 | C8: 3596.24 | D8: 87471.24 | E8: =RoundToSum($D8/Keys!$F26*Keys!C26:E26) -> 29157.08 | F8: 29157.08 | G8: 29157.08 | H8: 87471.24 | J8: E5:E15 | K8: E5 | L8: =sbGetCell(INDIRECT(K8),41) -> =RoundToSum($D5/Keys!$F23*Keys!C23:E23)
A9: HR | B9: 53765 | C9: 3730.94 | D9: 57495.94 | E9: =RoundToSum($D9/Keys!$F27*Keys!C27:E27) -> 17691.06 | F9: 17691.06 | G9: 22113.82 | H9: 57495.94 | J9: H5:H16 | K9: H5 | L9: =sbGetCell(INDIRECT(K9),41) -> =SUM(E5:G5)
A10: Marketing | B10: 239170 | C10: 6073.71 | D10: 245243.71 | E10: =RoundToSum($D10/Keys!$F28*Keys!C28:E28) -> 73573.11 | F10: 103002.36 | G10: 68668.24 | H10: 245243.71 | J10: E16 | K10: E16 | L10: =sbGetCell(INDIRECT(K10),41) -> ='1_Allocation'!O28
A11: Trainees | B11: 147397 | C11: 3565.82 | D11: 150962.82 | E11: =RoundToSum($D11/Keys!$F29*Keys!C29:E29) -> 50320.94 | F11: 50320.94 | G11: 50320.94 | H11: 150962.82 | J11: B17:H17 | K11: B17 | L11: =sbGetCell(INDIRECT(K11),41) -> =SUM(B5:B15)
A12: Workers Council | B12: 471 | C12: 3532.03 | D12: 4003.03 | E12: =RoundToSum($D12/Keys!$F30*Keys!C30:E30) -> 1231.7 | F12: 1231.7 | G12: 1539.63 | H12: 4003.03 | J12: E19:H19 | K12: E19 | L12: =sbGetCell(INDIRECT(K12),41) -> =SUM(E16:E18)
A13: Factory 1 | B13: 125225 | C13: 5077.75 | D13: 130302.75 | E13: =RoundToSum($D13/Keys!$F31*Keys!C31:E31) -> 32575.69 | F13: 26060.55 | G13: 71666.51 | H13: 130302.75 | J13: E21:H21 | K13: E21 | L13: =sbGetCell(INDIRECT(K13),41) -> =(E17+E16)/E18
A14: Factory 2 | B14: 2398512 | C14: 5408.03 | D14: 2403920.03 | E14: =RoundToSum($D14/Keys!$F32*Keys!C32:E32) -> 480784 | F14: 480784.01 | G14: 1442352.02 | H14: 2403920.03 | J14: H23 | K14: H23 | L14: =sbGetCell(INDIRECT(K14),41) -> =H19-SUM(E18:G18)-SUM(B5:B15)-SUM('1_Allocation'!C5:C27)
A15: Car Park | B15: 26992 | C15: 3847.06 | D15: 30839.06 | E15: =RoundToSum($D15/Keys!$F33*Keys!C33:E33) -> 12335.62 | F15: 9251.72 | G15: 9251.72 | H15: 30839.06
A16: Phase 1 Allocation | E16: ='1_Allocation'!O28 -> 6540.68 | F16: ='1_Allocation'!P28 -> 6754.83 | G16: ='1_Allocation'!Q28 -> 7214.08 | H16: =SUM(E16:G16) -> 20509.59
A17: Phase 2 Allocation | B17: =SUM(B5:B15) -> 3318534 | C17: 48440.41 | D17: 3366974.41 | E17: 778516.55 | F17: 796796.77 | G17: 1791661.09 | H17: 3366974.41
A18: Directs Costs | E18: 738060 | F18: 854000 | G18: 650360 | H18: =SUM(E18:G18) -> 2242420
A19: Total Primary Cost Centers | E19: =SUM(E16:E18) -> 1523117.23 | F19: =SUM(F16:F18) -> 1657551.6 | G19: =SUM(G16:G18) -> 2449235.17 | H19: =SUM(H16:H18) -> 5629904
A21: Overhead rate | E21: =(E17+E16)/E18 -> 1.063676707 | F21: =(F17+F16)/F18 -> 0.9409269321 | G21: =(G17+G16)/G18 -> 2.765968341 | H21: =(H17+H16)/H18 -> 1.510637615
G23: Check | H23: =H19-SUM(E18:G18)-SUM(B5:B15)-SUM('1_Allocation'!C5:C27) -> 0

Sheet Wiederhergestellt_Tabelle1 (hidden)
